lending/lending_fUSD_20250424
["ID","MTS","AMOUNT","RATE_DAILY","PERIOD"]
[358898763,1745535032013,-500.0,0.00019108,2]
[358898764,1745535032023,-355.77949222,0.00019108,2]
[358898765,1745535032034,-200.0,0.00019108,2]
[358898766,1745535032044,-216.90230431,0.00019108,2]
[358898767,1745535032058,-83.09769569,0.00019108,2]
[358898768,1745535032068,-1200.0,0.00019108,2]
[358898769,1745535032081,-2016.6133845,0.00019109,2]
[358898770,1745535032091,-10505.67,0.00019109,2]
[358898771,1745535032103,-200.0,0.00019209,2]
[358898772,1745535032113,-177.95,0.00019347,2]
[358898773,1745535032123,-410.33492546,0.00019373,2]
[358898774,1745535032133,-500.0,0.00019373,2]
[358898775,1745535032143,-500.0,0.00019373,2]
[358898776,1745535032153,-500.0,0.00019373,2]
[358898777,1745535032163,-500.0,0.00019373,2]
[358898778,1745535032173,-500.0,0.00019373,2]
[358898779,1745535032182,-850.0,0.00019378,2]
[358898780,1745535032194,-3313.03291565,0.00019378,2]
[358898781,1745535032204,-12000.0,0.00019379,2]
[358898782,1745535032214,-4097.70021279,0.00019379,2]
[358898783,1745535032226,-624.79046279,0.00019379,2]
[358898784,1745535032238,-510.674481,0.00019379,2]
[358898785,1745535032268,-362.5,0.00019379,2]
[358898786,1745535032280,-4404.32484342,0.00019379,2]
[358898788,1745535032291,-23900.0,0.0001938,2]
[358898790,1745535032300,-1127.72,0.0001938,2]
[358898792,1745535032310,-200.0,0.0001949,2]
[358898793,1745535032320,-27983.64,0.00019567,2]
[358898795,1745535032329,-169.05438181,0.00019573,2]
[358898797,1745535032340,-500.0,0.00019573,2]
[358898799,1745535032350,-1526.77,0.00019649,2]
[358898801,1745535032359,-191.66,0.00019649,2]
[358898803,1745535032369,-269.6916,0.0001971,2]
[358898805,1745535032379,-1000.0,0.00019736,2]
[358898807,1745535032389,-256.0,0.000198,2]
[358898809,1745535032399,-173.68737822,0.00019809,2]
[358898811,1745535032409,-195.78576437,0.00019809,2]
[358898813,1745535032418,-20566.05358364,0.0001981,2]
[358898815,1745535032428,-1852.42,0.0001982,2]
[358898817,1745535032437,-434.64,0.0001982,2]
[358898819,1745535032447,-499.99,0.0001982,2]
[358898821,1745535032457,-9999.99,0.0001982,2]
[358898823,1745535032467,-359.56,0.0001982,2]
[358898825,1745535032476,-8818.68,0.0001982,2]
[358898827,1745535032486,-3954.1,0.000199,2]
[358898828,1745535032495,-1416.2327232,0.000199,2]
[358898834,1745535032539,-119.7572768,0.000199,2]
[358898836,1745535032548,-150.99,0.000199,2]
[358898838,1745535032558,-562.72519859,0.000199,2]
[358898840,1745535032567,-175.08756421,0.000199,2]
[358898842,1745535032576,-4181.65159943,0.000199,2]
[358898846,1745535032606,-12.56135484,0.000199,2]
[358898848,1745535032615,-167.28667142,0.00019948,2]
[358898850,1745535032624,-185.638,0.00019973,2]
[358898852,1745535032635,-500.0,0.00019973,2]
[358898854,1745535032644,-500.0,0.00019973,2]
[358898856,1745535032654,-1243.947,0.00019973,2]
[358898857,1745535032663,-162.66,0.0001999,2]
[358898859,1745535032673,-162.66,0.0001999,2]
[358898861,1745535032682,-162.66,0.0001999,2]
[358898863,1745535032691,-162.66,0.0001999,2]
[358898865,1745535032700,-2900.85,0.0001999,2]
[358898867,1745535032711,-2900.85,0.0001999,2]
[358898869,1745535032720,-384945.15577462,0.0002,2]
[358898871,1745535032730,-24733.75382476,0.0002,2]
[358898873,1745535032742,-624.46481583,0.0002,2]
[358898876,1745535032752,-10287.47327553,0.0002,2]
[358898943,1745535038155,-541957.74983465,0.0002,2]
[358898944,1745535038167,-150.58206199,0.00020048,2]
[358898945,1745535038177,-250.0,0.00020149,2]
[358898946,1745535038187,-196.62,0.00020357,2]
[358898947,1745535038199,-920.0,0.00020405,2]
[358898948,1745535038208,-300.0,0.00020533,2]
[358898949,1745535038218,-372.09,0.0002057,2]
[358898950,1745535038228,-420.0,0.00020824,2]
[358898951,1745535038238,-420.0,0.00020825,2]
[358898952,1745535038247,-9731.58232789,0.000209,3]
[358898954,1745535038257,-1680.0,0.00020926,2]
[358898956,1745535038267,-350.0,0.00021,2]
[358898957,1745535038276,-250.0,0.00021018,2]
[358898958,1745535038286,-200.0,0.00021018,2]
[358898959,1745535038296,-250.0,0.00021018,2]
[358898960,1745535038306,-200.0,0.00021018,2]
[358898961,1745535038316,-250.0,0.00021019,2]
[358898962,1745535038326,-200.0,0.00021019,2]
[358898963,1745535038335,-279.49,0.000215,2]
[358898964,1745535038344,-150.0,0.00021917,2]
[358898965,1745535038355,-178.39,0.00021918,2]
[358898967,1745535038365,-5805.13201093,0.00021977,2]
[358898969,1745535038375,-1000.0,0.00022203,2]
[358898971,1745535038385,-4194.21295422,0.00022598,2]
[358898972,1745535038394,-587.0,0.00022696,2]
[358898973,1745535038404,-560.0,0.00022697,2]
[358898974,1745535038414,-372.09,0.00022834,2]
[358898975,1745535038424,-2351.0,0.00022918,2]
[358898976,1745535038434,-400.0,0.00023,2]
[358898977,1745535038444,-150.0,0.00023287,2]
[358898978,1745535038454,-578.0,0.00023435,2]
[358898979,1745535038464,-163.03,0.00023536,2]
[358898980,1745535038474,-166.66,0.00023678,2]
[358898981,1745535038484,-250.0,0.00023829,2]
[358898982,1745535038494,-641.81,0.00023836,2]
[358898983,1745535038504,-245.07491248,0.00024305,2]
[358898984,1745535038513,-166.66,0.0002446,2]
[358898985,1745535038523,-157.7046242,0.00024513,2]
[358898986,1745535038533,-151.0,0.00024567,7]
[358898988,1745535038543,-151.0,0.00024567,7]
[358898990,1745535038553,-151.0,0.00024567,7]
[358898992,1745535038563,-151.0,0.00024567,7]
[358898994,1745535038572,-178.438677,0.00024567,7]
[358898996,1745535038581,-1678.31715218,0.000246,2]
[358898998,1745535038591,-587.86401698,0.00024642,2]
[358899000,1745535038600,-156.03,0.00024657,2]
[358899002,1745535038609,-615.42,0.00024658,2]
[358899004,1745535038619,-1000.0,0.0002467,2]
[358899006,1745535038628,-823.0,0.00024736,2]
[358899008,1745535038638,-151.0,0.00024768,7]
[358899010,1745535038648,-918.0,0.00024768,2]
[358899012,1745535038657,-1281.0,0.00024768,2]
[358899014,1745535038666,-796.0,0.00024768,2]
[358899016,1745535038676,-1445.0,0.00024768,2]
[358899018,1745535038685,-910.0,0.00024768,2]
[358899020,1745535038695,-578.0,0.00024768,2]
[358899022,1745535038704,-430.599,0.00024768,2]
[358899024,1745535038713,-1195.952,0.00024768,2]
[358899026,1745535038722,-257.099,0.00024768,2]
[358899028,1745535038731,-4549.28,0.00024768,2]
[358899030,1745535038741,-876.0,0.00024768,2]
[358899032,1745535038750,-165.23413665,0.00024788,2]
[358899034,1745535038759,-151.0,0.00024788,7]
[358899036,1745535038769,-151.0,0.00024788,7]
[358899038,1745535038778,-394.20761132,0.0002479,2]
[358899040,1745535038788,-300.0,0.00024799,10]
[358899042,1745535038797,-500.0,0.00024799,2]
[358899044,1745535038807,-500.0,0.00024799,2]
[358899046,1745535038816,-500.0,0.00024799,2]
[358899048,1745535038826,-500.0,0.00024799,2]
[358899050,1745535038836,-151.0,0.000248,7]
[358899052,1745535038845,-151.0,0.000248,7]
[358899054,1745535038855,-151.0,0.000248,7]
[358899056,1745535038864,-218.161542,0.000248,7]
[358899058,1745535038874,-151.0,0.000248,7]
[358899060,1745535038884,-151.0,0.000248,7]
[358899062,1745535038894,-253582.920199,0.000248,3]
[358899064,1745535038904,-1000.0,0.00024852,2]
[358899066,1745535038914,-500.0,0.00024852,2]
[358899068,1745535038925,-577.754506,0.00024852,2]
[358899070,1745535038935,-1000.0,0.00024852,2]
[358899072,1745535038945,-713.0,0.00024877,2]
[358899074,1745535038955,-500.0,0.0002488,2]
[358899076,1745535038964,-500.0,0.0002488,2]
[358899078,1745535038974,-500.0,0.0002488,2]
[358899080,1745535038983,-500.0,0.0002488,2]
[358899082,1745535038995,-300.0,0.00024889,10]
[358899084,1745535039008,-500.0,0.00024889,2]
[358899086,1745535039018,-500.0,0.00024889,2]
[358899088,1745535039029,-500.0,0.00024889,2]
[358899090,1745535039038,-500.0,0.00024889,2]
[358899092,1745535039048,-22403.53988167,0.00024891,2]
[358899094,1745535039058,-500.0,0.00024899,2]
[358899096,1745535039068,-500.0,0.00024899,2]
[358899098,1745535039078,-500.0,0.00024899,2]
[358899100,1745535039088,-500.0,0.00024899,2]
[358899102,1745535039100,-500.0,0.00024899,2]
[358899104,1745535039109,-500.0,0.00024899,2]
[358899106,1745535039119,-151.0,0.000249,7]
[358899108,1745535039129,-151.0,0.000249,7]
[358899110,1745535039138,-151.0,0.000249,7]
[358899112,1745535039148,-151.0,0.000249,7]
[358899114,1745535039157,-151.0,0.000249,7]
[358899116,1745535039167,-275.927413,0.000249,7]
[358899118,1745535039176,-151.0,0.000249,7]
[358899120,1745535039185,-151.0,0.000249,7]
[358899122,1745535039195,-368.188731,0.000249,7]
[358899124,1745535039204,-151.0,0.000249,7]
[358899126,1745535039214,-368.188731,0.000249,7]
[358899128,1745535039223,-151.0,0.000249,7]
[358899130,1745535039232,-151.0,0.000249,7]
[358899132,1745535039242,-151.0,0.000249,7]
[358899134,1745535039252,-151.0,0.000249,7]
[358899136,1745535039262,-151.0,0.000249,7]
[358899138,1745535039273,-151.0,0.000249,7]
[358899140,1745535039285,-388.371314,0.000249,7]
[358899142,1745535039294,-388.371314,0.000249,7]
[358899144,1745535039304,-156.937028,0.000249,7]
[358899146,1745535039314,-156.937028,0.000249,7]
[358899148,1745535039323,-286.763781,0.000249,7]
[358899150,1745535039334,-151.0,0.000249,7]
[358899152,1745535039343,-286.763781,0.000249,7]
[358899154,1745535039352,-151.0,0.000249,7]
[358899156,1745535039361,-151.0,0.000249,7]
[358899158,1745535039370,-1067.049443,0.000249,7]
[358899160,1745535039380,-151.0,0.000249,7]
[358899162,1745535039389,-682.761914,0.000249,7]
[358899164,1745535039399,-682.761914,0.000249,7]
[358899166,1745535039409,-201.835686,0.000249,7]
[358899168,1745535039418,-201.835686,0.000249,7]
[358899170,1745535039428,-211.473619,0.000249,2]
[358899172,1745535039438,-211.473619,0.000249,2]
[358899174,1745535039447,-151.0,0.000249,7]
[358899176,1745535039456,-151.0,0.000249,7]
[358899179,1745535039466,-151.0,0.000249,7]
[358899181,1745535039475,-151.0,0.000249,7]
[358899182,1745535039485,-301.155705,0.000249,7]
[358899185,1745535039495,-151.0,0.000249,7]
[358899186,1745535039504,-151.0,0.000249,7]
[358899189,1745535039513,-151.0,0.000249,7]
[358899190,1745535039522,-250.843611,0.000249,7]
[358899193,1745535039532,-39889.36896481,0.000249,3]
[358899279,1745535040474,-443.02,0.000249,3]
[358899656,1745535047893,-567485.18628219,0.000249,3]
[358899657,1745535047903,-151.0,0.000249,7]
[358899658,1745535047915,-151.0,0.000249,7]
[358899659,1745535047925,-151.0,0.000249,7]
[358899660,1745535047935,-151.0,0.000249,7]
[358899661,1745535047946,-151.0,0.000249,7]
[358899662,1745535047956,-151.0,0.000249,7]
[358899663,1745535047966,-151.0,0.000249,7]
[358899664,1745535047975,-152.120952,0.000249,7]
[358899665,1745535047986,-152.120952,0.000249,7]
[358899666,1745535047995,-359.0,0.00024932,2]
[358899667,1745535048005,-450.0,0.00025,2]
[358899668,1745535048017,-359.0,0.00025,2]
[358899669,1745535048027,-500.0,0.00025008,2]
[358899670,1745535048037,-1000.0,0.00025052,2]
[358899671,1745535048047,-372.09,0.00025098,2]
[358899672,1745535048059,-3292.0,0.00025099,2]
[358899673,1745535048068,-359.0,0.00025205,2]
[358899674,1745535048079,-8099.98,0.00025205,2]
[358899675,1745535048091,-166.66,0.00025241,2]
[358899676,1745535048102,-4194.21295422,0.00025296,2]
[358899677,1745535048112,-1000.0,0.00025452,2]
[358899678,1745535048122,-359.0,0.00025479,2]
[358899679,1745535048132,-359.0,0.00025753,2]
[358899680,1745535048142,-167.943954,0.00025788,2]
[358899681,1745535048151,-151.0,0.00025867,7]
[358899682,1745535048161,-151.0,0.00025867,7]
[358899683,1745535048171,-151.0,0.00025877,7]
[358899684,1745535048181,-359.0,0.0002589,2]
[358899685,1745535048191,-151.0,0.00025907,7]
[358899686,1745535048201,-151.0,0.00025907,7]
[358899687,1745535048210,-151.0,0.00025907,7]
[358899688,1745535048222,-12417.04257975,0.00025945,2]
[358899689,1745535048232,-220.0,0.00026013,2]
[358899690,1745535048242,-166.66,0.00026023,2]
[358899691,1745535048252,-4400.22,0.00026752,2]
[358899692,1745535048262,-166.66,0.00026804,2]
[358899693,1745535048272,-1152.0,0.00026959,2]
[358899694,1745535048282,-500.0,0.00027,2]
[358899695,1745535048292,-1000.0,0.00027137,2]
[358899696,1745535048302,-359.0,0.00027185,2]
[358899697,1745535048312,-365.0,0.00027185,2]
[358899698,1745535048322,-372.09,0.00027362,2]
[358899699,1745535048331,-700.0,0.00027397,2]
[358899700,1745535048341,-700.0,0.00027397,2]
[358899701,1745535048351,-700.0,0.00027397,2]
[358899702,1745535048362,-700.0,0.00027397,2]
[358899703,1745535048371,-700.0,0.00027397,2]
[358899704,1745535048381,-150.0,0.00027397,5]
[358899705,1745535048391,-499.09477457,0.00027397,5]
[358899706,1745535048402,-1118.08,0.00027425,30]
[358899707,1745535048412,-1431.0,0.00027487,2]
[358899708,1745535048422,-166.66,0.00027586,2]
[358899709,1745535048432,-918.0,0.00027768,2]
[358899710,1745535048442,-796.0,0.00027768,2]
[358899711,1745535048451,-1445.0,0.00027768,2]
[358899712,1745535048461,-910.0,0.00027768,2]
[358899713,1745535048471,-262.543,0.00027768,2]
[358899714,1745535048481,-152.0,0.00027768,2]
[358899715,1745535048491,-876.0,0.00027768,2]
[358899716,1745535048501,-151.0,0.00027945,5]
[358899717,1745535048511,-4194.21295422,0.00027994,2]
[358899718,1745535048521,-351.2,0.00028173,2]
[358899719,1745535048531,-351.2,0.00028173,2]
[358899720,1745535048541,-351.2,0.00028173,2]
[358899721,1745535048550,-359.0,0.00028272,2]
[358899722,1745535048560,-2302.16,0.00028287,2]
[358899723,1745535048571,-450.34,0.00028287,2]
[358899724,1745535048581,-150.0,0.00028287,2]
[358899725,1745535048591,-351.2,0.00028287,2]
[358899726,1745535048601,-323.5,0.00028287,2]
[358899727,1745535048610,-450.34,0.00028287,2]
[358899728,1745535048619,-351.2,0.00028287,2]
[358899729,1745535048628,-150.0,0.00028287,2]
[358899730,1745535048638,-450.34,0.00028287,2]
[358899731,1745535048648,-351.2,0.00028287,2]
[358899732,1745535048657,-150.0,0.00028287,2]
[358899733,1745535048667,-450.34,0.00028287,2]
[358899734,1745535048676,-351.2,0.00028287,2]
[358899735,1745535048686,-450.34,0.00028287,2]
[358899736,1745535048695,-351.2,0.00028287,2]
[358899737,1745535048705,-450.34,0.00028287,2]
[358899738,1745535048714,-359.0,0.00028479,2]
[358899739,1745535048724,-152.0,0.00028493,5]
[358899740,1745535048735,-550.0,0.00029,2]
[358899741,1745535048744,-201.0,0.00029041,5]
[358899742,1745535048754,-359.0,0.0002936,2]
[358899743,1745535048764,-356.0,0.0002944,7]
[358899744,1745535048773,-1000.0,0.00029604,2]
[358899745,1745535048783,-372.09,0.00029626,2]
[358899746,1745535048793,-359.0,0.00029774,2]
[358899747,1745535048802,-1000.0,0.00029906,2]
[358899748,1745535048812,-359.0,0.00030447,2]
[358899749,1745535048821,-1000.0,0.00030488,5]
[358899750,1745535048830,-4194.21295422,0.00030692,2]
[358899751,1745535048840,-151.0,0.00030738,7]
[358899752,1745535048850,-151.0,0.00030768,7]
[358899753,1745535048859,-918.0,0.00030768,2]
[358899754,1745535048868,-796.0,0.00030768,2]
[358899755,1745535048878,-1364.242,0.00030768,2]
[358899756,1745535048887,-152.0,0.00030768,2]
[358899757,1745535048897,-876.0,0.00030768,2]
[358899758,1745535048907,-150.0,0.00030801,2]
[358899759,1745535048916,-1052.53062662,0.00030801,2]
[358899760,1745535048926,-150.0,0.00030801,2]
[358899761,1745535048935,-150.0,0.00030801,2]
[358899762,1745535048945,-885.82384354,0.00030801,2]
[358899763,1745535048954,-1729.44520121,0.00030801,2]
[358899764,1745535048964,-600.0,0.00031,2]
[358899765,1745535048973,-151.0,0.00031,7]
[358899766,1745535048984,-151.0,0.00031,7]
[358899767,1745535048994,-359.0,0.00031068,2]
[358899768,1745535049005,-359.0,0.00031535,2]
[358899769,1745535049018,-151.0,0.00031567,7]
[358899770,1745535049028,-151.0,0.00031567,7]
[358899771,1745535049039,-151.0,0.00031567,7]
[358899772,1745535049048,-372.09,0.0003189,2]
[358899773,1745535049057,-838.47,0.000326,7]
[358899774,1745535049068,-359.0,0.00032622,2]
[358899775,1745535049078,-1000.0,0.00032625,2]
[358899776,1745535049087,-299.683283,0.00032837,7]
[358899777,1745535049097,-151.0,0.00032877,7]
[358899778,1745535049107,-151.0,0.00032877,7]
[358899779,1745535049117,-151.0,0.00032877,7]
[358899780,1745535049126,-151.0,0.00032877,7]
[358899781,1745535049135,-151.0,0.00032877,7]
[358899782,1745535049146,-151.0,0.00032877,7]
[358899783,1745535049154,-150.0,0.00032877,2]
[358899784,1745535049164,-150.06,0.00032877,30]
[358899785,1745535049173,-150.23279255,0.00032877,5]
[358899786,1745535049183,-193.396767,0.00032877,7]
[358899787,1745535049193,-151.0,0.00032877,7]
[358899788,1745535049202,-650.0,0.00033,2]
[358899789,1745535049212,-157.7046242,0.0003301,4]
[358899790,1745535049221,-231.6431295,0.00033118,2]
[358899791,1745535049231,-199.53044972,0.00033118,2]
[358899792,1745535049241,-150.0,0.00033118,2]
[358899793,1745535049250,-212.03698974,0.00033118,2]
[358899794,1745535049260,-4194.21295422,0.0003339,2]
[358899795,1745535049269,-150.0,0.00033742,2]
[358899796,1745535049279,-918.0,0.00033768,2]
[358899797,1745535049289,-796.0,0.00033768,2]
[358899798,1745535049300,-152.0,0.00033768,2]
[358899799,1745535049310,-876.0,0.00033768,2]
[358899800,1745535049320,-151.0,0.000339,7]
[358899801,1745535049330,-151.0,0.000339,7]
[358899802,1745535049341,-371.0,0.00034121,14]
[358899803,1745535049350,-188.0,0.00034125,14]
[358899804,1745535049360,-372.09,0.00034154,2]
[358899805,1745535049370,-682.0,0.000346,2]
[358899806,1745535049380,-150.0,0.00034607,2]
[358899807,1745535049390,-5000.0,0.000348,3]
[358899808,1745535049399,-277.38103397,0.00034834,5]
[358899809,1745535049648,-870.74038935,0.00034871,2]
[358899810,1745535049659,-1411.075011,0.0003488,5]
[358899811,1745535049670,-574.8172695,0.00034999,10]
[358899812,1745535049680,-500.0,0.00034999,10]
[358899813,1745535049691,-500.0,0.00034999,10]
[358899814,1745535049700,-666.0,0.00034999,10]
[358899815,1745535049710,-694.50507917,0.00034999,10]
[358899816,1745535049720,-500.0,0.00034999,10]
[358899817,1745535049730,-500.0,0.00034999,10]
[358899818,1745535049740,-500.0,0.00034999,10]
[358899819,1745535049751,-6499.999999,0.00035,3]
[358899820,1745535049762,-400000.0,0.00035,4]
[358899821,1745535049771,-3900.0,0.00035,7]
[358899822,1745535049782,-1196.13370253,0.00035,2]
[358899823,1745535049792,-6036.54940207,0.00035,2]
[358899824,1745535049802,-227.72919541,0.00035,2]
[358899825,1745535049812,-700.0,0.00035,2]
[358899826,1745535049822,-272.699651,0.00035,7]
[358899827,1745535049832,-151.0,0.00035,7]
[358899828,1745535049842,-151.0,0.00035,7]
[358899829,1745535049853,-151.0,0.00035,7]
[358899830,1745535049863,-368.188731,0.00035,7]
[358899831,1745535049873,-151.0,0.00035,7]
[358899832,1745535049883,-368.188731,0.00035,7]
[358899833,1745535049893,-151.0,0.00035,7]
[358899834,1745535049903,-175.99702,0.00035,7]
[358899835,1745535049914,-151.0,0.00035,7]
[358899836,1745535049923,-151.0,0.00035,7]
[358899837,1745535049933,-151.0,0.00035,7]
[358899838,1745535049943,-151.0,0.00035,7]
[358899839,1745535049953,-388.371314,0.00035,7]
[358899840,1745535049963,-388.371314,0.00035,7]
[358899841,1745535049972,-156.937028,0.00035,7]
[358899842,1745535049982,-156.937028,0.00035,7]
[358899843,1745535049992,-286.763781,0.00035,7]
[358899844,1745535050002,-151.0,0.00035,7]
[358899845,1745535050016,-286.763781,0.00035,7]
[358899846,1745535050026,-151.0,0.00035,7]
[358899847,1745535050036,-151.0,0.00035,7]
[358899848,1745535050047,-1067.049443,0.00035,7]
[358899849,1745535050058,-151.0,0.00035,7]
[358899850,1745535050068,-682.761914,0.00035,7]
[358899851,1745535050078,-682.761914,0.00035,7]
[358899852,1745535050091,-201.835686,0.00035,7]
[358899853,1745535050102,-201.835686,0.00035,7]
[358899854,1745535050112,-211.473619,0.00035,2]
[358899855,1745535050122,-211.473619,0.00035,2]
[358899856,1745535050132,-151.0,0.00035,7]
[358899857,1745535050142,-151.0,0.00035,7]
[358899858,1745535050152,-151.0,0.00035,7]
[358899859,1745535050163,-151.0,0.00035,7]
[358899860,1745535050173,-151.0,0.00035,7]
[358899861,1745535050183,-151.0,0.00035,7]
[358899862,1745535050194,-151.0,0.00035,7]
[358899863,1745535050205,-151.0,0.00035,7]
[358899864,1745535050215,-151.0,0.00035,7]
[358899865,1745535050225,-151.0,0.00035,7]
[358899866,1745535050235,-151.0,0.00035,7]
[358899867,1745535050246,-151.0,0.00035,7]
[358899868,1745535050255,-151.0,0.00035,7]
[358899869,1745535050265,-152.120952,0.00035,7]
[358899870,1745535050276,-641.81,0.00035068,2]
[358899871,1745535050286,-1500.0,0.00035071,5]
[358899872,1745535050297,-1009.78385307,0.00035471,5]
[358899873,1745535050307,-150.0,0.00035472,2]
[358899874,1745535050317,-178.39,0.00035616,2]
[358899875,1745535050327,-313.91,0.00035785,7]
[358899876,1745535050337,-151.0,0.00035906,7]
[358899877,1745535050348,-222.20764197,0.00035906,7]
[358899878,1745535050358,-500.0,0.00035929,10]
[358899879,1745535050368,-500.0,0.00035929,10]
[358899880,1745535050379,-666.0,0.00035929,10]
[358899881,1745535050389,-500.0,0.00035929,10]
[358899882,1745535050399,-500.0,0.00035929,10]
[358899883,1745535050410,-500.0,0.00035929,10]
[358899884,1745535050421,-219959.22454235,0.0003593,7]
[358899885,1745535050431,-151.0,0.0003593,7]
[358899886,1745535050442,-151.0,0.0003593,7]
[358899887,1745535050452,-151.0,0.0003593,7]
[358899888,1745535050462,-151.0,0.0003593,7]
[358899889,1745535050473,-3000.0,0.00036,2]
[358899890,1745535050484,-645.89970638,0.00036,2]
[358899891,1745535050495,-500.0,0.00036,5]
[358899892,1745535050505,-4194.21295422,0.00036088,2]
[358899893,1745535050516,-1118.08,0.00036139,30]
[358899894,1745535050526,-151.0,0.00036233,7]
[358899895,1745535050537,-368.188731,0.00036233,7]
[358899896,1745535050547,-368.188731,0.00036233,7]
[358899897,1745535050557,-500.0,0.00036279,10]
[358899898,1745535050569,-24353.0,0.0003628,5]
[358899899,1745535050580,-150.0,0.00036337,2]
[358899900,1745535050590,-151.0,0.00036348,7]
[358899901,1745535050600,-279.078652,0.00036348,7]
[358899902,1745535050610,-151.0,0.00036348,7]
[358899903,1745535050620,-151.0,0.00036348,7]
[358899904,1745535050630,-682.761914,0.00036348,7]
[358899905,1745535050640,-682.761914,0.00036348,7]
[358899906,1745535050649,-201.835686,0.00036348,7]
[358899907,1745535050659,-201.835686,0.00036348,7]
[358899908,1745535050669,-211.473619,0.00036348,2]
[358899909,1745535050679,-211.473619,0.00036348,2]
[358899910,1745535050689,-151.0,0.00036348,7]
[358899911,1745535050698,-372.09,0.00036418,2]
[358899912,1745535050707,-151.0,0.000365,7]
[358899913,1745535050718,-151.0,0.000365,7]
[358899914,1745535050727,-388.371314,0.000365,7]
[358899915,1745535050736,-388.371314,0.000365,7]
[358899916,1745535050747,-156.937028,0.000365,7]
[358899917,1745535050756,-156.937028,0.000365,7]
[358899918,1745535050765,-286.763781,0.000365,7]
[358899919,1745535050776,-286.763781,0.000365,7]
[358899920,1745535050785,-1067.049443,0.000365,7]
[358899921,1745535050795,-151.0,0.000365,7]
[358899922,1745535050805,-151.0,0.000365,7]
[358899923,1745535050815,-796.0,0.00036768,2]
[358899924,1745535050825,-876.0,0.00036768,2]
[358899925,1745535050835,-969.91,0.00037,2]
[358899926,1745535050845,-750.0,0.00037,2]
[358899927,1745535050855,-150.0,0.00037203,2]
[358899928,1745535050865,-151.0,0.00037452,7]
[358899929,1745535050875,-151.0,0.00037452,7]
[358899930,1745535050887,-2638.27082916,0.0003749,2]
[358899931,1745535050897,-151.0,0.0003753,7]
[358899932,1745535050907,-151.0,0.0003753,7]
[358899933,1745535050917,-151.0,0.0003753,7]
[358899934,1745535050927,-151.0,0.0003753,7]
[358899935,1745535050937,-151.0,0.0003753,7]
[358899936,1745535050947,-151.0,0.0003753,7]
[358899937,1745535050959,-151.0,0.0003753,7]
[358899938,1745535050968,-151.0,0.0003753,7]
[358899939,1745535050978,-151.0,0.0003753,7]
[358899940,1745535050989,-152.120952,0.0003753,7]
[358899941,1745535050999,-4204.43935602,0.0003759,2]
[358899942,1745535051013,-500.0,0.00037799,10]
[358899943,1745535051023,-607.66071158,0.00037799,10]
[358899944,1745535051034,-500.0,0.00037799,10]
[358899945,1745535051044,-500.0,0.00037799,10]